[Event "*** Titled Tuesday Blitz"]
[Site "Chess.com"]
[Date "2020.04.28"]
[Round "8"]
[White "queen_iryna"]
[Black "CMFernandez"]
[Result "1-0"]
[WhiteElo "2270"]
[BlackElo "2073"]
[TimeControl "180+1"]
[EndTime "11:33:07 PDT"]
[Termination "queen_iryna won by resignation"]

1. d4 {[%clk 0:03:00.9]} 1... Nf6 {[%clk 0:02:48.6]} 2. Bg5 {[%clk 0:02:44.6]}
2... e6 {[%clk 0:02:45.1]} 3. e4 {[%clk 0:02:43]} 3... c5 {[%clk 0:02:44.7]} 4.
d5 {[%clk 0:02:40.3]} 4... h6 {[%clk 0:02:40.9]} 5. Bxf6 {[%clk 0:02:38.6]} 5...
Qxf6 {[%clk 0:02:40.8]} 6. Nc3 {[%clk 0:02:39.5]} 6... d6 {[%clk 0:02:33.8]} 7.
Nf3 {[%clk 0:02:38]} 7... g6 {[%clk 0:02:27.7]} 8. Bb5+ {[%clk 0:02:34]} 8...
Bd7 {[%clk 0:02:27]} 9. dxe6 {[%clk 0:02:29.8]} 9... Qxe6 {[%clk 0:02:23.8]} 10.
O-O {[%clk 0:02:22.4]} 10... Bg7 {[%clk 0:02:23.8]} 11. Nd5 {[%clk 0:02:12]}
11... O-O {[%clk 0:01:55.2]} 12. Nc7 {[%clk 0:01:46.4]} 12... Qxe4 {[%clk
0:01:44.1]} 13. Re1 {[%clk 0:01:35.4]} 13... Qg4 {[%clk 0:01:36.1]} 14. a4
{[%clk 0:01:31.6]} 14... Nc6 {[%clk 0:01:20.7]} 15. Nxa8 {[%clk 0:01:28]} 15...
Rxa8 {[%clk 0:01:19.5]} 16. Qxd6 {[%clk 0:01:26.8]} 16... Bxb2 {[%clk
0:01:18.6]} 17. Rab1 {[%clk 0:01:21.5]} 17... Bg7 {[%clk 0:01:08.2]} 18. h3
{[%clk 0:01:17.9]} 18... Qf5 {[%clk 0:01:07.1]} 19. Bd3 {[%clk 0:01:16.2]} 19...
Bf8 {[%clk 0:00:55.3]} 20. Bxf5 {[%clk 0:01:15.5]} 20... Bxd6 {[%clk 0:00:54.9]}
21. Bxd7 {[%clk 0:01:15.5]} 1-0

[Event "*** Titled Tuesday Blitz"]
[Site "Chess.com"]
[Date "2020.04.28"]
[Round "8"]
[White "inegrepus"]
[Black "szefru"]
[Result "1-0"]
[WhiteElo "2257"]
[BlackElo "2123"]
[TimeControl "180+1"]
[EndTime "11:33:07 PDT"]
[Termination "inegrepus won by resignation"]

1. d4 {[%clk 0:03:00.9]} 1... Nf6 {[%clk 0:02:59.6]} 2. c4 {[%clk 0:03:00.4]}
2... g6 {[%clk 0:02:59.9]} 3. g3 {[%clk 0:02:59.6]} 3... Bg7 {[%clk 0:03:00.3]}
4. Bg2 {[%clk 0:03:00]} 4... O-O {[%clk 0:03:00.9]} 5. Nf3 {[%clk 0:03:00.5]}
5... c6 {[%clk 0:03:01.4]} 6. O-O {[%clk 0:02:57]} 6... d5 {[%clk 0:03:01.9]} 7.
cxd5 {[%clk 0:02:56.7]} 7... cxd5 {[%clk 0:03:02.8]} 8. Nc3 {[%clk 0:02:56.3]}
8... Nc6 {[%clk 0:03:02.3]} 9. Ne5 {[%clk 0:02:56.5]} 9... Ng4 {[%clk
0:02:57.6]} 10. Bxd5 {[%clk 0:02:38.9]} 10... Ngxe5 {[%clk 0:02:51.3]} 11. dxe5
{[%clk 0:02:39.4]} 11... Nxe5 {[%clk 0:02:50.8]} 12. Bf4 {[%clk 0:02:34]} 12...
Bh3 {[%clk 0:02:44.1]} 13. Bg2 {[%clk 0:02:07.7]} 13... Bxg2 {[%clk 0:02:43.1]}
14. Kxg2 {[%clk 0:02:07.7]} 14... Qb6 {[%clk 0:02:41.2]} 15. Qb3 {[%clk
0:02:02.7]} 15... Qxb3 {[%clk 0:02:22.6]} 16. axb3 {[%clk 0:02:02.3]} 16... Nd7
{[%clk 0:02:23]} 17. Nd5 {[%clk 0:01:55.8]} 17... e5 {[%clk 0:02:21.2]} 18. Be3
{[%clk 0:01:52.2]} 18... a6 {[%clk 0:02:14.3]} 19. Rfd1 {[%clk 0:01:46.9]} 19...
Nf6 {[%clk 0:02:06.4]} 20. Bc5 {[%clk 0:01:22.5]} 20... Rfd8 {[%clk 0:01:58.2]}
21. Nxf6+ {[%clk 0:01:07.1]} 21... Bxf6 {[%clk 0:01:57.5]} 22. Bb6 {[%clk
0:01:08]} 22... Rxd1 {[%clk 0:01:50.6]} 23. Rxd1 {[%clk 0:01:08.9]} 23... Rc8
{[%clk 0:01:50.7]} 24. Rd7 {[%clk 0:01:08.2]} 24... Rc2 {[%clk 0:01:49.4]} 25.
Rxb7 {[%clk 0:00:56.2]} 25... Rxe2 {[%clk 0:01:45.8]} 26. Bc5 {[%clk 0:00:51.4]}
26... Rxb2 {[%clk 0:01:45.3]} 27. Rb8+ {[%clk 0:00:51.1]} 27... Kg7 {[%clk
0:01:41.9]} 28. Bf8+ {[%clk 0:00:51.1]} 28... Kg8 {[%clk 0:01:40.7]} 29. Bh6+
{[%clk 0:00:50.6]} 1-0

[Event "*** Titled Tuesday Blitz"]
[Site "Chess.com"]
[Date "2020.04.28"]
[Round "8"]
[White "Charlottemillard17"]
[Black "mjray79"]
[Result "0-1"]
[WhiteElo "1409"]
[BlackElo "2250"]
[TimeControl "180+1"]
[EndTime "11:33:08 PDT"]
[Termination "mjray79 won by checkmate"]

1. e4 {[%clk 0:03:00.9]} 1... e5 {[%clk 0:02:59.2]} 2. Nf3 {[%clk 0:03:00.4]}
2... Nc6 {[%clk 0:02:59.7]} 3. Bc4 {[%clk 0:02:59.9]} 3... Bc5 {[%clk
0:03:00.1]} 4. O-O {[%clk 0:02:59.1]} 4... Nf6 {[%clk 0:03:00.6]} 5. d3 {[%clk
0:02:57.7]} 5... O-O {[%clk 0:03:00.7]} 6. Nc3 {[%clk 0:02:57.4]} 6... h6 {[%clk
0:02:58.6]} 7. h3 {[%clk 0:02:54.7]} 7... a6 {[%clk 0:02:58.2]} 8. Kh1 {[%clk
0:02:52.6]} 8... d6 {[%clk 0:02:57.6]} 9. Nh2 {[%clk 0:02:51.3]} 9... Be6 {[%clk
0:02:58.5]} 10. Bb3 {[%clk 0:02:50.2]} 10... d5 {[%clk 0:02:50.6]} 11. exd5
{[%clk 0:02:42.6]} 11... Nxd5 {[%clk 0:02:51.5]} 12. Nxd5 {[%clk 0:02:23.3]}
12... Bxd5 {[%clk 0:02:52.4]} 13. f4 {[%clk 0:02:23.1]} 13... exf4 {[%clk
0:02:41]} 14. Bxf4 {[%clk 0:02:12.3]} 14... Nd4 {[%clk 0:02:32.4]} 15. Qg4
{[%clk 0:01:58.8]} 15... Kh8 {[%clk 0:02:03.1]} 16. Be5 {[%clk 0:01:47.6]} 16...
f6 {[%clk 0:02:00.5]} 17. Bxd4 {[%clk 0:01:44.1]} 17... Bxd4 {[%clk 0:01:58.6]}
18. Qxd4 {[%clk 0:01:43.5]} 18... Bxg2+ {[%clk 0:01:57.2]} 19. Kxg2 {[%clk
0:01:39.3]} 19... Qxd4 {[%clk 0:01:56.9]} 20. Nf3 {[%clk 0:01:36.2]} 20... Qb6
{[%clk 0:01:50]} 21. Rf2 {[%clk 0:01:31.8]} 21... Rae8 {[%clk 0:01:49]} 22. Rg1
{[%clk 0:01:28.8]} 22... Re3 {[%clk 0:01:43.7]} 23. Kf1 {[%clk 0:01:26.9]} 23...
Rfe8 {[%clk 0:01:38.9]} 24. Rg3 {[%clk 0:01:24.3]} 24... Qd6 {[%clk 0:01:29.9]}
25. Rfg2 {[%clk 0:01:20.1]} 25... Qf4 {[%clk 0:01:21.1]} 26. Rxg7 {[%clk
0:01:14.8]} 26... Rxf3+ {[%clk 0:01:19]} 27. Kg1 {[%clk 0:01:14.2]} 27... Re1#
{[%clk 0:01:17.4]} 0-1

[Event "*** Titled Tuesday Blitz"]
[Site "Chess.com"]
[Date "2020.04.28"]
[Round "8"]
[White "rpragchess"]
[Black "donotreadit"]
[Result "1-0"]
[WhiteElo "2833"]
[BlackElo "2699"]
[TimeControl "180+1"]
[EndTime "11:33:12 PDT"]
[Termination "rpragchess won by resignation"]

1. Nf3 {[%clk 0:03:00.9]} 1... d5 {[%clk 0:02:59.3]} 2. g3 {[%clk 0:03:00.5]}
2... Nf6 {[%clk 0:02:58.8]} 3. Bg2 {[%clk 0:03:00.7]} 3... e6 {[%clk 0:02:59.5]}
4. O-O {[%clk 0:02:58.2]} 4... Be7 {[%clk 0:02:59.9]} 5. d3 {[%clk 0:02:58.9]}
5... O-O {[%clk 0:03:00.5]} 6. Nbd2 {[%clk 0:02:59.6]} 6... c5 {[%clk
0:03:00.2]} 7. e4 {[%clk 0:03:00.4]} 7... Nc6 {[%clk 0:03:00.8]} 8. e5 {[%clk
0:03:01]} 8... Nd7 {[%clk 0:03:00.3]} 9. Re1 {[%clk 0:03:01.7]} 9... b5 {[%clk
0:03:00.2]} 10. Nf1 {[%clk 0:03:02]} 10... a5 {[%clk 0:03:00.9]} 11. h4 {[%clk
0:03:02.5]} 11... a4 {[%clk 0:02:55.1]} 12. a3 {[%clk 0:03:00.1]} 12... c4
{[%clk 0:02:52.7]} 13. d4 {[%clk 0:02:45.8]} 13... b4 {[%clk 0:02:52.8]} 14.
axb4 {[%clk 0:02:40.7]} 14... Nxb4 {[%clk 0:02:46.2]} 15. Bf4 {[%clk 0:02:35.6]}
15... Qc7 {[%clk 0:02:39.7]} 16. Qd2 {[%clk 0:02:28.9]} 16... Nb6 {[%clk
0:02:26.8]} 17. h5 {[%clk 0:02:15.6]} 17... Bd7 {[%clk 0:02:24.3]} 18. h6 {[%clk
0:02:10.2]} 18... g6 {[%clk 0:02:24.3]} 19. Bg5 {[%clk 0:02:10.4]} 19... Qd8
{[%clk 0:01:59.8]} 20. Bxe7 {[%clk 0:02:01.2]} 20... Qxe7 {[%clk 0:02:00.7]} 21.
Ne3 {[%clk 0:01:57.5]} 21... Rfc8 {[%clk 0:01:40.6]} 22. Ng4 {[%clk 0:01:51.8]}
22... c3 {[%clk 0:01:34.5]} 23. bxc3 {[%clk 0:01:51.3]} 23... Nc4 {[%clk
0:01:35.1]} 24. Qc1 {[%clk 0:01:48.8]} 24... Nc6 {[%clk 0:01:31.3]} 25. Nf6+
{[%clk 0:01:48.4]} 25... Kh8 {[%clk 0:01:31.4]} 26. Ng5 {[%clk 0:01:48.7]} 26...
a3 {[%clk 0:01:18.5]} 27. Qf4 {[%clk 0:01:37.6]} 27... a2 {[%clk 0:01:16.3]} 28.
Nxd7 {[%clk 0:01:33.4]} 28... f5 {[%clk 0:01:09.7]} 29. exf6 {[%clk 0:01:27.2]}
29... Qxd7 {[%clk 0:01:09.6]} 30. f7 {[%clk 0:01:27.4]} 1-0

[Event "*** Titled Tuesday Blitz"]
[Site "Chess.com"]
[Date "2020.04.28"]
[Round "8"]
[White "zivicd"]
[Black "WhiteCapital80"]
[Result "0-1"]
[WhiteElo "2215"]
[BlackElo "2404"]
[TimeControl "180+1"]
[EndTime "11:33:12 PDT"]
[Termination "WhiteCapital80 won by resignation"]

1. e4 {[%clk 0:03:00.9]} 1... e6 {[%clk 0:03:00.1]} 2. d4 {[%clk 0:03:00.3]}
2... d5 {[%clk 0:03:00.7]} 3. Nd2 {[%clk 0:03:00.7]} 3... Nf6 {[%clk 0:03:00.5]}
4. e5 {[%clk 0:03:00.5]} 4... Nfd7 {[%clk 0:03:00.8]} 5. c3 {[%clk 0:03:00.9]}
5... c5 {[%clk 0:03:01.3]} 6. Bd3 {[%clk 0:03:00.4]} 6... Nc6 {[%clk 0:03:01]}
7. Ne2 {[%clk 0:03:00.2]} 7... f6 {[%clk 0:03:01.5]} 8. exf6 {[%clk 0:03:00.3]}
8... Nxf6 {[%clk 0:03:01.5]} 9. Nf3 {[%clk 0:02:59.1]} 9... Bd6 {[%clk
0:03:01.7]} 10. Be3 {[%clk 0:02:57.6]} 10... b6 {[%clk 0:02:59.6]} 11. Bb5
{[%clk 0:02:36.3]} 11... Bd7 {[%clk 0:02:59.1]} 12. Nf4 {[%clk 0:02:29.4]} 12...
Qc7 {[%clk 0:02:46.6]} 13. Nd3 {[%clk 0:02:22.3]} 13... O-O {[%clk 0:02:28.1]}
14. dxc5 {[%clk 0:02:13.6]} 14... bxc5 {[%clk 0:02:27]} 15. Nxc5 {[%clk
0:02:04.4]} 15... Bxc5 {[%clk 0:02:03.4]} 16. Bxc5 {[%clk 0:02:05.3]} 16... Rfb8
{[%clk 0:02:03.7]} 17. Qe2 {[%clk 0:01:43.9]} 17... Rxb5 {[%clk 0:01:37.1]} 18.
Qxb5 {[%clk 0:01:42.1]} 18... Nd4 {[%clk 0:01:37.3]} 19. Qd3 {[%clk 0:01:23.6]}
19... Nxf3+ {[%clk 0:01:36]} 20. Qxf3 {[%clk 0:01:21.5]} 20... Qxc5 {[%clk
0:01:36.5]} 21. O-O {[%clk 0:01:21.2]} 21... Rf8 {[%clk 0:01:36.9]} 22. Kh1
{[%clk 0:01:01.6]} 22... Ne4 {[%clk 0:01:34.8]} 0-1

[Event "*** Titled Tuesday Blitz"]
[Site "Chess.com"]
[Date "2020.04.28"]
[Round "8"]
[White "Chess_Boxer123"]
[Black "MrRooke6"]
[Result "0-1"]
[WhiteElo "2555"]
[BlackElo "2446"]
[TimeControl "180+1"]
[EndTime "11:33:20 PDT"]
[Termination "MrRooke6 won by resignation"]

1. e4 {[%clk 0:03:00.9]} 1... Nc6 {[%clk 0:02:56.2]} 2. Nf3 {[%clk 0:02:58.9]}
2... d6 {[%clk 0:02:56.6]} 3. d4 {[%clk 0:02:57]} 3... Nf6 {[%clk 0:02:56.9]} 4.
Nc3 {[%clk 0:02:56.7]} 4... g6 {[%clk 0:02:57.2]} 5. Be2 {[%clk 0:02:56.5]} 5...
Bg7 {[%clk 0:02:56.8]} 6. d5 {[%clk 0:02:56.9]} 6... Nb8 {[%clk 0:02:56.5]} 7.
O-O {[%clk 0:02:57]} 7... O-O {[%clk 0:02:56.4]} 8. a4 {[%clk 0:02:56.9]} 8...
a5 {[%clk 0:02:52.1]} 9. h3 {[%clk 0:02:53.6]} 9... c6 {[%clk 0:02:51.5]} 10.
Be3 {[%clk 0:02:48.4]} 10... Na6 {[%clk 0:02:51.4]} 11. Re1 {[%clk 0:02:46.5]}
11... Nb4 {[%clk 0:02:50.9]} 12. dxc6 {[%clk 0:02:31.2]} 12... bxc6 {[%clk
0:02:50.3]} 13. e5 {[%clk 0:02:31]} 13... Nfd5 {[%clk 0:02:48.5]} 14. Nxd5
{[%clk 0:02:31]} 14... Nxd5 {[%clk 0:02:48.1]} 15. Bd4 {[%clk 0:02:27]} 15... c5
{[%clk 0:02:46]} 16. Bc4 {[%clk 0:02:27.1]} 16... Nb6 {[%clk 0:02:44.5]} 17.
Bxf7+ {[%clk 0:02:18.7]} 17... Rxf7 {[%clk 0:02:41.9]} 18. Bxc5 {[%clk
0:02:17.9]} 18... Bb7 {[%clk 0:02:37.7]} 19. exd6 {[%clk 0:02:17.5]} 19... exd6
{[%clk 0:02:32.9]} 20. Bxb6 {[%clk 0:02:17]} 20... Qxb6 {[%clk 0:02:31.4]} 21.
Re3 {[%clk 0:02:12.4]} 21... Raf8 {[%clk 0:02:27.7]} 22. Raa3 {[%clk 0:02:08.6]}
22... Bh6 {[%clk 0:01:44.1]} 23. Rab3 {[%clk 0:01:59]} 23... Qa7 {[%clk
0:01:39.9]} 24. Red3 {[%clk 0:01:49.1]} 24... Be4 {[%clk 0:01:38.7]} 25. Rdc3
{[%clk 0:01:47.4]} 25... d5 {[%clk 0:01:37.5]} 26. Nd4 {[%clk 0:01:06.4]} 26...
Rxf2 {[%clk 0:01:32.9]} 27. Rg3 {[%clk 0:01:05.8]} 27... Rf1+ {[%clk 0:01:30.1]}
28. Qxf1 {[%clk 0:00:58]} 0-1

[Event "*** Titled Tuesday Blitz"]
[Site "Chess.com"]
[Date "2020.04.28"]
[Round "8"]
[White "ljuks68"]
[Black "nabukatnezarr"]
[Result "0-1"]
[WhiteElo "2358"]
[BlackElo "2515"]
[TimeControl "180+1"]
[EndTime "11:33:22 PDT"]
[Termination "nabukatnezarr won by resignation"]

1. e4 {[%clk 0:02:59.8]} 1... d6 {[%clk 0:03:00.1]} 2. d4 {[%clk 0:02:59]} 2...
Nf6 {[%clk 0:03:00.8]} 3. Nc3 {[%clk 0:02:59.5]} 3... e5 {[%clk 0:03:01.4]} 4.
dxe5 {[%clk 0:02:58.8]} 4... dxe5 {[%clk 0:03:02.3]} 5. Qxd8+ {[%clk 0:02:58.6]}
5... Kxd8 {[%clk 0:03:03.2]} 6. f4 {[%clk 0:02:58.9]} 6... exf4 {[%clk
0:03:01.4]} 7. Bxf4 {[%clk 0:02:58.3]} 7... Nbd7 {[%clk 0:02:57]} 8. O-O-O
{[%clk 0:02:38.8]} 8... Bc5 {[%clk 0:02:49.1]} 9. Bc4 {[%clk 0:02:34]} 9... Bxg1
{[%clk 0:02:43.6]} 10. Rhxg1 {[%clk 0:02:32.8]} 10... Rf8 {[%clk 0:02:43]} 11.
Nb5 {[%clk 0:02:25.8]} 11... Ne8 {[%clk 0:02:40.5]} 12. Rgf1 {[%clk 0:02:07.8]}
12... a6 {[%clk 0:02:39.9]} 13. Nd4 {[%clk 0:02:07]} 13... h6 {[%clk 0:01:54.6]}
14. Bg3 {[%clk 0:02:00.4]} 14... Nef6 {[%clk 0:01:46]} 15. e5 {[%clk 0:01:54.3]}
15... Ne4 {[%clk 0:01:46]} 16. Ne6+ {[%clk 0:01:54]} 16... fxe6 {[%clk 0:01:42]}
17. Rxf8+ {[%clk 0:01:51.4]} 17... Ke7 {[%clk 0:01:42.6]} 18. Rdf1 {[%clk
0:01:29.7]} 18... Nxf8 {[%clk 0:01:36]} 19. Be1 {[%clk 0:01:21]} 19... b6 {[%clk
0:01:16.1]} 20. b4 {[%clk 0:01:10.6]} 20... Bb7 {[%clk 0:01:16.1]} 21. Bd3
{[%clk 0:01:04.4]} 21... Nd7 {[%clk 0:01:11.7]} 0-1

[Event "*** Titled Tuesday Blitz"]
[Site "Chess.com"]
[Date "2020.04.28"]
[Round "8"]
[White "Kobalia"]
[Black "MateSchmate"]
[Result "1-0"]
[WhiteElo "2694"]
[BlackElo "2469"]
[TimeControl "180+1"]
[EndTime "11:33:29 PDT"]
[Termination "Kobalia won by checkmate"]

1. d4 {[%clk 0:03:00.9]} 1... c5 {[%clk 0:03:00.1]} 2. d5 {[%clk 0:02:59.5]}
2... e5 {[%clk 0:03:00.4]} 3. Nc3 {[%clk 0:02:56.7]} 3... d6 {[%clk 0:03:00.9]}
4. e4 {[%clk 0:02:56.6]} 4... g6 {[%clk 0:03:01.5]} 5. f4 {[%clk 0:02:52.1]}
5... exf4 {[%clk 0:02:57.8]} 6. Bxf4 {[%clk 0:02:51.1]} 6... a6 {[%clk
0:02:57.5]} 7. Nf3 {[%clk 0:02:50.4]} 7... Bg7 {[%clk 0:02:57.7]} 8. h3 {[%clk
0:02:44.2]} 8... Ne7 {[%clk 0:02:56.6]} 9. a4 {[%clk 0:02:43]} 9... O-O {[%clk
0:02:56.3]} 10. Bc4 {[%clk 0:02:42.9]} 10... Re8 {[%clk 0:02:49.9]} 11. O-O
{[%clk 0:02:42]} 11... h6 {[%clk 0:02:46.6]} 12. e5 {[%clk 0:02:39.1]} 12... Nf5
{[%clk 0:02:41.5]} 13. Re1 {[%clk 0:02:28.4]} 13... dxe5 {[%clk 0:02:37.3]} 14.
Nxe5 {[%clk 0:02:26.5]} 14... Nd7 {[%clk 0:02:30]} 15. Nxf7 {[%clk 0:02:15.8]}
15... Bd4+ {[%clk 0:02:21.8]} 16. Qxd4 {[%clk 0:02:04.4]} 16... cxd4 {[%clk
0:02:16.1]} 17. Nxd8 {[%clk 0:02:04.1]} 17... Rxd8 {[%clk 0:02:17]} 18. d6+
{[%clk 0:01:58.8]} 18... Kg7 {[%clk 0:02:15.4]} 19. Nd5 {[%clk 0:01:57.3]} 19...
g5 {[%clk 0:02:08.4]} 20. Bh2 {[%clk 0:01:54]} 20... Nc5 {[%clk 0:02:03.2]} 21.
Re7+ {[%clk 0:01:44.8]} 21... Nxe7 {[%clk 0:01:56.1]} 22. dxe7 {[%clk
0:01:43.6]} 22... Re8 {[%clk 0:01:56.7]} 23. Nc7 {[%clk 0:01:43.5]} 23... Bd7
{[%clk 0:01:57.3]} 24. Nxa8 {[%clk 0:01:40.3]} 24... Rxa8 {[%clk 0:01:58.2]} 25.
Rf1 {[%clk 0:01:34.8]} 25... Re8 {[%clk 0:01:49.1]} 26. Be5+ {[%clk 0:01:33.8]}
26... Kg6 {[%clk 0:01:47.4]} 27. Bf7+ {[%clk 0:01:32.5]} 27... Kh7 {[%clk
0:01:48]} 28. Bxe8 {[%clk 0:01:32.1]} 28... Bxe8 {[%clk 0:01:48.9]} 29. Rf8
{[%clk 0:01:31.2]} 29... Bxa4 {[%clk 0:01:49.5]} 30. e8=Q {[%clk 0:01:29.3]}
30... Bxe8 {[%clk 0:01:49.9]} 31. Rxe8 {[%clk 0:01:29.4]} 31... d3 {[%clk
0:01:50.8]} 32. cxd3 {[%clk 0:01:28.9]} 32... Nxd3 {[%clk 0:01:51.7]} 33. Bc3
{[%clk 0:01:27.7]} 33... b5 {[%clk 0:01:51.8]} 34. Rd8 {[%clk 0:01:26.4]} 34...
Nc5 {[%clk 0:01:52.1]} 35. Rd5 {[%clk 0:01:25.8]} 35... Ne4 {[%clk 0:01:51.9]}
36. Re5 {[%clk 0:01:25.5]} 36... Ng3 {[%clk 0:01:52]} 37. Kf2 {[%clk 0:01:24.2]}
37... Nh5 {[%clk 0:01:51.4]} 38. Re6 {[%clk 0:01:23.5]} 38... Nf4 {[%clk
0:01:51.1]} 39. Rxa6 {[%clk 0:01:23.3]} 39... b4 {[%clk 0:01:50.5]} 40. Bd4
{[%clk 0:01:22.3]} 40... b3 {[%clk 0:01:49.6]} 41. Kf3 {[%clk 0:01:21.9]} 41...
Nd3 {[%clk 0:01:49.2]} 42. g4 {[%clk 0:01:20.9]} 42... Ne1+ {[%clk 0:01:48.1]}
43. Ke4 {[%clk 0:01:20.4]} 43... Nc2 {[%clk 0:01:47.6]} 44. Bc3 {[%clk
0:01:20.4]} 44... Kg8 {[%clk 0:01:46.3]} 45. Rxh6 {[%clk 0:01:19.5]} 45... Kf7
{[%clk 0:01:46.8]} 46. Rb6 {[%clk 0:01:18.9]} 46... Na1 {[%clk 0:01:46.1]} 47.
Kf5 {[%clk 0:01:18.4]} 47... Nc2 {[%clk 0:01:43.6]} 48. Rxb3 {[%clk 0:01:17.1]}
48... Ke8 {[%clk 0:01:44.5]} 49. Ke6 {[%clk 0:01:16.2]} 49... Ne3 {[%clk
0:01:44.9]} 50. Rb8# {[%clk 0:01:15.2]} 1-0

[Event "*** Titled Tuesday Blitz"]
[Site "Chess.com"]
[Date "2020.04.28"]
[Round "8"]
[White "MariaFominykh"]
[Black "HarryCun"]
[Result "1/2-1/2"]
[WhiteElo "2378"]
[BlackElo "2175"]
[TimeControl "180+1"]
[EndTime "11:33:29 PDT"]
[Termination "Game drawn by agreement"]

1. d4 {[%clk 0:03:00.9]} 1... c6 {[%clk 0:03:00.9]} 2. Nf3 {[%clk 0:02:59.9]}
2... d5 {[%clk 0:03:01.8]} 3. c4 {[%clk 0:02:59]} 3... Nf6 {[%clk 0:03:02.4]} 4.
Nc3 {[%clk 0:02:58.9]} 4... a6 {[%clk 0:03:00.3]} 5. e3 {[%clk 0:02:52.9]} 5...
Bf5 {[%clk 0:02:58]} 6. b3 {[%clk 0:02:52.4]} 6... e6 {[%clk 0:02:57.7]} 7. Bb2
{[%clk 0:02:49.3]} 7... Nbd7 {[%clk 0:02:57.6]} 8. Be2 {[%clk 0:02:48.4]} 8...
Be7 {[%clk 0:02:57]} 9. O-O {[%clk 0:02:48.1]} 9... O-O {[%clk 0:02:50.1]} 10.
h3 {[%clk 0:02:47.6]} 10... Ne4 {[%clk 0:02:50]} 11. Nxe4 {[%clk 0:02:42.6]}
11... Bxe4 {[%clk 0:02:50.9]} 12. Nd2 {[%clk 0:02:40.4]} 12... Bg6 {[%clk
0:02:50.4]} 13. f3 {[%clk 0:02:29.8]} 13... Nf6 {[%clk 0:02:49.6]} 14. Re1
{[%clk 0:02:26.5]} 14... c5 {[%clk 0:02:47]} 15. Bf1 {[%clk 0:02:17.2]} 15...
dxc4 {[%clk 0:02:45.6]} 16. Nxc4 {[%clk 0:02:14.8]} 16... cxd4 {[%clk
0:02:45.5]} 17. Qxd4 {[%clk 0:02:07.8]} 17... Qxd4 {[%clk 0:02:41.3]} 18. Bxd4
{[%clk 0:02:07.2]} 18... b5 {[%clk 0:02:41]} 19. Ne5 {[%clk 0:02:04.2]} 19...
Rac8 {[%clk 0:02:34.5]} 20. Rec1 {[%clk 0:01:57.1]} 20... Ba3 {[%clk 0:02:33.9]}
21. Rxc8 {[%clk 0:01:55.5]} 21... Rxc8 {[%clk 0:02:32.9]} 22. e4 {[%clk
0:01:54.5]} 22... Kf8 {[%clk 0:02:27.9]} 23. Bd3 {[%clk 0:01:50.3]} 23... Rc7
{[%clk 0:02:08.2]} 24. Rd1 {[%clk 0:01:46.3]} 24... Nd7 {[%clk 0:02:06.5]} 25.
Nxd7+ {[%clk 0:01:34.5]} 25... Rxd7 {[%clk 0:02:07.4]} 26. Be2 {[%clk
0:01:31.2]} 26... Rc7 {[%clk 0:01:52.3]} 27. Be3 {[%clk 0:01:16.9]} 27... Ke7
{[%clk 0:01:45.9]} 28. Kf2 {[%clk 0:01:15.7]} 28... Bc5 {[%clk 0:01:40.6]} 29.
Rd2 {[%clk 0:01:13.8]} 29... f5 {[%clk 0:01:38.2]} 30. Bxc5+ {[%clk 0:01:09.9]}
30... Rxc5 {[%clk 0:01:37.1]} 31. Ke3 {[%clk 0:01:05.2]} 31... fxe4 {[%clk
0:01:35.8]} 32. fxe4 {[%clk 0:01:04.5]} 32... Rc3+ {[%clk 0:01:33.3]} 33. Kd4
{[%clk 0:01:00.2]} 33... Rc7 {[%clk 0:01:25.3]} 34. Bf3 {[%clk 0:01:00]} 1/2-1/2

[Event "*** Titled Tuesday Blitz"]
[Site "Chess.com"]
[Date "2020.04.28"]
[Round "8"]
[White "Omk124"]
[Black "TengisChess"]
[Result "0-1"]
[WhiteElo "2351"]
[BlackElo "2541"]
[TimeControl "180+1"]
[EndTime "11:33:34 PDT"]
[Termination "TengisChess won by resignation"]

1. e4 {[%clk 0:03:00.9]} 1... c6 {[%clk 0:02:59.6]} 2. c4 {[%clk 0:02:59.5]}
2... e5 {[%clk 0:02:58.9]} 3. Nf3 {[%clk 0:02:58.4]} 3... d6 {[%clk 0:02:58.4]}
4. Nc3 {[%clk 0:02:58.6]} 4... Nf6 {[%clk 0:02:56.8]} 5. d3 {[%clk 0:02:58.9]}
5... Be7 {[%clk 0:02:56.2]} 6. g3 {[%clk 0:02:59.4]} 6... O-O {[%clk 0:02:56.2]}
7. Bg2 {[%clk 0:03:00]} 7... Bg4 {[%clk 0:02:56.2]} 8. O-O {[%clk 0:03:00.4]}
8... c5 {[%clk 0:02:55.8]} 9. h3 {[%clk 0:03:00.6]} 9... Bxf3 {[%clk 0:02:55.7]}
10. Bxf3 {[%clk 0:02:59.9]} 10... Nc6 {[%clk 0:02:56.6]} 11. Bg2 {[%clk
0:03:00.4]} 11... Nd4 {[%clk 0:02:56.1]} 12. Be3 {[%clk 0:02:59.3]} 12... Rb8
{[%clk 0:02:55.3]} 13. b3 {[%clk 0:02:54.7]} 13... a6 {[%clk 0:02:54.4]} 14. f4
{[%clk 0:02:52.5]} 14... b5 {[%clk 0:02:53.1]} 15. Kh2 {[%clk 0:02:51.2]} 15...
Qa5 {[%clk 0:02:50.8]} 16. Bd2 {[%clk 0:02:50.6]} 16... b4 {[%clk 0:02:49.7]}
17. Nd5 {[%clk 0:02:50.7]} 17... Nxd5 {[%clk 0:02:49.5]} 18. exd5 {[%clk
0:02:51.6]} 18... Bf6 {[%clk 0:02:44.5]} 19. a3 {[%clk 0:02:43.1]} 19... exf4
{[%clk 0:02:39.7]} 20. axb4 {[%clk 0:02:42.1]} 20... fxg3+ {[%clk 0:02:39.3]}
21. Kxg3 {[%clk 0:02:42.6]} 21... Be5+ {[%clk 0:02:37.6]} 22. Kf2 {[%clk
0:02:37.1]} 22... Qd8 {[%clk 0:02:34.8]} 23. Rxa6 {[%clk 0:02:33.7]} 23... Qh4+
{[%clk 0:02:33.2]} 24. Kg1 {[%clk 0:02:33.7]} 24... Qg3 {[%clk 0:02:33.5]} 25.
Re1 {[%clk 0:02:06.2]} 25... Qh2+ {[%clk 0:02:20.6]} 26. Kf1 {[%clk 0:02:04.2]}
26... cxb4 {[%clk 0:02:18.9]} 27. Ra7 {[%clk 0:01:50.3]} 27... Nf5 {[%clk
0:02:16]} 28. Qf3 {[%clk 0:01:22.4]} 28... Bd4 {[%clk 0:02:13.5]} 29. Rae7
{[%clk 0:00:31.7]} 29... Ng3+ {[%clk 0:02:10.9]} 30. Qxg3 {[%clk 0:00:31.1]}
30... Qxg3 {[%clk 0:02:10.9]} 31. R7e2 {[%clk 0:00:30.4]} 31... Rbe8 {[%clk
0:02:08.4]} 32. Bxb4 {[%clk 0:00:27.5]} 32... Rxe2 {[%clk 0:02:07]} 33. Rxe2
{[%clk 0:00:28.1]} 33... Qxd3 {[%clk 0:02:06.8]} 34. Bxd6 {[%clk 0:00:28.6]}
34... Re8 {[%clk 0:02:01.9]} 35. Be7 {[%clk 0:00:21.3]} 35... Rxe7 {[%clk
0:02:00.7]} 36. Be4 {[%clk 0:00:21.5]} 0-1